Cogmind - Beta 17 @@@ ROGUE MODE // 2026.06.23 @ 18:18:13 Player: Lolterzard Result: Destroyed by YI-UF0 with YI-UF0's Doublenader Performance ------------- Evolutions (0) 0 Regions Visited (2) 400 Robots Destroyed (30) 150 Value Destroyed (452) 452 Prototype IDs (1) 20 Alien Tech Used (0) 0 Bonus (0) 0 TOTAL SCORE: 1022 Bonus ------- None Cogmind --------- Core Integrity 0/250 Matter 214/300 Energy 280/280 System Corruption 0% Temperature Cool (12) Movement Rolling (220) Ox8 Location -10/Mines Parts ------- > --- POWER (1) -------- Heavy Ion Engine > --- PROPULSION (2) --- Compact Wheel > --- UTILITY (2) ------ High-capacity Storage Unit Huge Storage Unit > --- WEAPON (2) ------- Light Assault Rifle > --- INVENTORY (25) --- Ion Engine Heavy Ion Engine Heavy Ion Engine Improved Treads Improved Treads Improved Treads Improved Treads Wheel Compact Wheel Compact Wheel Heat Sink Small Storage Unit Peak State ------------ > --- POWER ------------ Heavy Ion Engine > --- PROPULSION ------- Wheel Wheel > --- UTILITY ---------- High-capacity Storage Unit Huge Storage Unit > --- WEAPON ----------- Assault Rifle Assault Rifle > --- INVENTORY -------- Ion Engine Ion Engine Heavy Ion Engine Heavy Ion Engine Wheel Wheel Compact Wheel Compact Wheel Compact Wheel Compact Wheel Flight Unit Heat Sink Small Storage Unit Light Assault Rifle Light Assault Rifle Light Cannon [Rating: 11] Favorites ----------- Power Ion Engine Engine Ion Engine Propulsion Wheel Treads Light Treads Wheel Wheel Utility Huge Storage Unit Device Seismic Detector Storage Huge Storage Unit Weapon Assault Rifle Ballistic Gun Assault Rifle Ballistic Cannon Light Cannon Build | -11 -10 -10 ------- Run | Yrd Mat Min Slots Evolved . | . . . Power . | . . . Propulsion . | . . . Utility . | . . . Weapon . | . . . Parts Attached 20 | 8 7 5 Power 4 | 1 3 . Engine 4 | 1 3 . Core . | . . . Reactor . | . . . Propulsion 7 | 2 2 3 Treads 2 | 2 . . Leg . | . . . Wheel 5 | . 2 3 Hover . | . . . Flight . | . . . Utility 4 | 2 2 . Device 1 | 1 . . Storage 3 | 1 2 . Processor . | . . . Hackware . | . . . Protection . | . . . Artifact . | . . . Weapon 5 | 3 . 2 Energy Gun . | . . . Energy Cannon . | . . . Ballistic Gun 4 | 3 . 1 Ballistic Cannon 1 | . . 1 Launcher . | . . . Special Weapon . | . . . Impact Weapon . | . . . Slashing Weapon . | . . . Piercing Weapon . | . . . Special Melee Weapon . | . . . Unidentified Prototypes 1 | . 1 . Parts Lost 10 | . 2 8 Power 1 | . 1 . Propulsion 4 | . . 4 Utility 1 | . 1 . Weapon 4 | . . 4 Highest Loss Streak 5 | . 1 5 To Critical Strikes . | . . . Average Backups 10 | 3 10 15 Power 2 | 1 2 3 Propulsion 5 | 1 5 9 Utility 1 | . 1 2 Weapon 1 | . 1 1 Tool/Special . | . . . Unused Backups 15 | . 3 12 Power 6 | . 3 3 Propulsion 8 | . . 8 Utility 1 | . . 1 Weapon . | . . . Tool/Special . | . . . Average Slot Usage (%) 98 | . 99 91 Engine 13 | . 13 14 Treads 9 | . 11 . Wheel 17 | . 16 22 Device 4 | . 4 . Storage 23 | . 22 28 Ballistic Gun 26 | . 28 14 Ballistic Cannon 1 | . . 11 Peak Build Rating 11 | 7 11 11 Average Rating 7 | 6 7 10 On Entrance 6 | . 7 11 Avg Prop Armor Cover (%) 19 | 19 . . Naked Turns . | . . . Heaviest Build 132 | 15 132 132 Greatest Support 40 | 40 40 32 Greatest Overweight (x) 13 | 4 6 13 Average Overweight (x) 3 | . 3 6 Largest Inventory Capacity 25 | 8 25 25 Average Capacity 21 | 7 23 25 Most Carried 19 | 5 19 19 Average Carried 10 | 3 10 15 Final Capacity 25 | 8 25 25 Final Carried 19 | 5 19 12 Class Distribution -------------------- 100% | Mutant Dominant Class ---------------- Mutant | -10/Materials Mutant | -10/Mines Resources | -11 -10 -10 ----------- Run | Yrd Mat Min Matter Collected 876 | 223 605 48 Remotely . | . . . Salvage Created 876 | 78 775 23 Parts 62 | 6 55 1 Haulers Intercepted 2 | . 2 . Recyclers Shooed 6 | 3 3 . Parts Field Recycled . | . . . Retrieved Matter . | . . . Parts Self-Destructed . | . . . Prevented . | . . . Parts Restored . | . . . Kills | -11 -10 -10 ------- Run | Yrd Mat Min Combat Hostiles Destroyed 18 | . 16 2 Guns 16 | . 16 . Cannons 2 | . . 2 Classes Destroyed 8 | 3 5 . Worker 3 | 1 2 . Tunneler 1 | 1 . . Hauler 2 | . 2 . Recycler 3 | 1 2 . Operator 1 | . 1 . Watcher 2 | . 2 . Swarmer 10 | . 8 2 Grunt 8 | . 8 . Best Kill Streak 6 | 1 6 2 Combat Bots Only 5 | . 5 2 Max Kills in Single Turn 2 | 1 2 1 Gunslinging . | . . . Exploded . | . . . Melee . | . . . Uniques/NPCs Destroyed . | . . . Combat | -11 -10 -10 -------- Run | Yrd Mat Min Hostile Shots Fired 130 | . 73 57 Missed 29 | . 14 15 Hits 101 | . 59 42 Projectile 101 | . 59 42 AOE 24 | . . 24 Damage Taken 1321 | . 536 785 Core 254 | . 46 208 Absorbed by Shields . | . . . Core Remaining (%) 100 | 100 . . Volleys Fired 101 | 13 71 17 Largest 2 | 2 2 2 Hottest 50 | 40 40 50 Shots Fired 200 | 26 142 32 Gun 188 | 26 142 20 Cannon 12 | . . 12 Launcher . | . . . Special . | . . . Kinetic 200 | 26 142 32 Thermal . | . . . Explosive . | . . . Electromagnetic . | . . . Robot Hit Streak 6 | 6 6 5 Robot Miss Streak 6 | 2 6 4 Penetration Max . | . . . Secondary Targets 1 | . 1 . Max Gunslinging Chain 1 | . 1 . Shots Hit Robots 113 | 17 80 16 Core Hits 47 | 4 40 3 Critical Kills 2 | . 2 . Critical Parts Destroyed 1 | . 1 . Critical Strikes 3 | . 3 . Destroy 3 | . 3 . Melee Attacks . | . . . Impact . | . . . Slashing . | . . . Piercing . | . . . Sneak Attacks . | . . . Combat Hostiles . | . . . Follow-up Attacks . | . . . Damage Inflicted 1508 | 230 1066 212 Guns 1368 | 230 1066 72 Cannons 140 | . . 140 Explosions . | . . . Melee . | . . . Ramming . | . . . Kinetic 1508 | 230 1066 212 Thermal . | . . . Explosive . | . . . Electromagnetic . | . . . Impact . | . . . Slashing . | . . . Piercing . | . . . Highest Corruption . | . . . Average Corruption . | . . . Corruption Purged . | . . . Corruption Blocked . | . . . Overload Shots . | . . . Overflow Damage 6 | . . 6 Projectiles 6 | . . 6 Explosions . | . . . Melee . | . . . Knockbacks 3 | . . 3 Impact . | . . . Kinetic 3 | . . 3 Secondary . | . . . Self-Inflicted Damage . | . . . Shots . | . . . Rammed . | . . . Targets Rammed . | . . . Kicked . | . . . Crushed . | . . . Highest Temperature 24 | . 5 24 Average Temperature 11 | . 5 11 Received Heat Transfer 150 | . 150 . Siege Activations . | . . . Martial Activations . | . . . Shielding Activations . | . . . Robots Disrupted . | . . . Combat Hostiles . | . . . Robots Corrupted . | . . . Combat Hostiles . | . . . Parts Fried . | . . . Impact Corruptions . | . . . Robots Melted . | . . . Combat Hostiles . | . . . Parts Melted . | . . . Heat Transferred . | . . . Parts Sabotaged . | . . . Parts Stolen . | . . . Parts Stripped . | . . . Power Chain Reactions . | . . . Alert | -11 -10 -10 ------- Run | Yrd Mat Min Maximum Alert Level 1 | . 1 . Low Security (%) 94 | 100 93 100 Level 1 5 | . 6 . Level 2 . | . . . Level 3 . | . . . Level 4 . | . . . Level 5 . | . . . High Security . | . . . Max Security . | . . . Peak Influence 216 | 5 216 40 Initial 36 | . . 36 Average 97 | . 128 11 Influence Increases 560 | 15 505 40 Destroy 0b10 Robot/C 360 | . 320 40 Destroy 0b10 Robot/NC 60 | 15 45 . Destroy Leader 58 | . 58 . Successful Hack 7 | . 7 . Lose Combat Pursuer 75 | . 75 . Influence Decreases 560 | 15 410 135 Entered New Map 59 | . . 59 Time Decay 451 | 15 390 46 Lost Part 50 | . 20 30 Squads Dispatched 2 | . 2 . Investigation . | . . . Extermination . | . . . Reinforcement 2 | . 2 . Assault . | . . . Garrison . | . . . Intercept . | . . . Searches Triggered . | . . . Construction Impeded . | . . . Haulers Reinforced . | . . . Active Scanning Responses . | . . . Cargo Convoy Interrupts . | . . . Stealth | -11 -10 -10 --------- Run | Yrd Mat Min Distress Signals 2 | . 2 . Communications Jammed . | . . . Distress Signals . | . . . Times Spotted 35 | . 30 5 Peak Tracking Total 7 | . 7 3 Tactical Retreats 3 | . 2 1 Traps | -11 -10 -10 ------- Run | Yrd Mat Min Traps Triggered . | . . . Indirectly . | . . . Trap Hack Attempts . | . . . Triggered . | . . . Disarmed . | . . . Reprogrammed . | . . . Reused . | . . . Traps Extracted . | . . . Installed . | . . . Triggered . | . . . Machines | -11 -10 -10 ---------- Run | Yrd Mat Min Machines Disabled . | . . . Max in Single Turn . | . . . Machines Repaired . | . . . Machines Dismantled . | . . . Machines Sabotaged . | . . . Overloaded Fab Kills . | . . . Hacking | -11 -10 -10 --------- Run | Yrd Mat Min Machines Accessed 3 | . 3 . Terminals 3 | . 3 . Fabricators . | . . . Repair Stations . | . . . Recycling Units . | . . . Scanalyzers . | . . . Garrison Access . | . . . Total Hacks 5 | . 5 . Successful 2 | . 2 . Failed 3 | . 3 . Catastrophic 1 | . 1 . Database Lockouts . | . . . Manual . | . . . Terminals 5 | . 5 . Fabricators . | . . . Repair Stations . | . . . Recycling Units . | . . . Scanalyzers . | . . . Garrison Access . | . . . Terminal Hacks 2 | . 2 . Registered Components 1 | . 1 . Zone Layout 1 | . 1 . Fabricator Hacks . | . . . Repair Station Hacks . | . . . Recycling Unit Hacks . | . . . Scanalyzer . | . . . Garrison Access Hacks . | . . . Unauthorized Hacks . | . . . Terminals . | . . . Fabricators . | . . . Repair Stations . | . . . Recycling Units . | . . . Scanalyzers . | . . . Garrison Access . | . . . Data Cores Recovered . | . . . Used . | . . . Hacking Detections 1 | . 1 . Full Trace Events 1 | . 1 . Feedback Events . | . . . Feedback Blocked . | . . . Robot Schematics Acquired . | . . . Robots Built . | . . . Authchips . | . . . Time . | . . . Total Robot Build Rating . | . . . Part Schematics Acquired . | . . . Parts Built . | . . . Authchips . | . . . Time . | . . . Total Part Build Rating . | . . . Part Studies Acquired . | . . . Parts Repaired . | . . . Time . | . . . Parts Recycled . | . . . Recycled Matter . | . . . Retrieved Matter . | . . . Retrieved Components . | . . . Parts Scanalyzed . | . . . Part Schematics Acquired . | . . . Parts Damaged . | . . . Bothacking | -11 -10 -10 ------------ Run | Yrd Mat Min Used RIF Installer . | . . . Robots Hacked . | . . . Non-combat . | . . . Combat . | . . . Robot Hacks Applied . | . . . Relay Couplers Released . | . . . Fabnet Peak Effective % . | . . . Robots Rewired . | . . . Allies Hacked . | . . . Hacks Repelled . | . . . Allies | -11 -10 -10 -------- Run | Yrd Mat Min Total Allies . | . . . Largest Group . | . . . Highest-Rated Group . | . . . Highest-Rated Ally . | . . . Total Orders . | . . . Ally Attacks . | . . . Total Damage . | . . . Kills . | . . . Allies Corrupted . | . . . Allies Melted . | . . . Intel | -11 -10 -10 ------- Run | Yrd Mat Min Active Infowar (turns) 400 | . 400 . Seismic 400 | . 400 . Robot Analysis Total . | . . . Derelict Logs Recovered . | . . . Drone Launches . | . . . Drone Recoveries . | . . . Exploration | -11 -10 -10 ------------- Run | Yrd Mat Min Turns Passed 1599 | 218 1193 188 Spaces Moved 705 | 99 534 72 Core 24 | 24 . . Treads 218 | 75 143 . Legs . | . . . Wheels 463 | . 391 72 Hover . | . . . Flight . | . . . Fastest Speed 50 | 50 140 160 Average Speed 175 | 165 176 184 Slowest Speed 320 | 250 320 275 Overloaded Moves . | . . . Propulsion Burnouts . | . . . Robots Hopped . | . . . Potential Cave-ins . | . . . Cave-ins Triggered . | . . . Exploration Rate (%) 31 | 5 69 21 Regions Visited 2 Branch Regions 1 Pre-discovered Areas . | . . . Known Exits Taken . | . . . Unknown Exits Taken 2 | 1 1 . Scrap Searched . | . . . Spaces Dug . | . . . Terrain Destroyed . | . . . Melee . | . . . Projectile . | . . . AOE . | . . . Terrain Rammed . | . . . Walls Destroyed . | . . . Machines Disabled . | . . . Actions | -11 -10 -10 --------- Run | Yrd Mat Min Total 869 | 124 647 98 Wait 7 | . 7 . Move 703 | 98 533 72 Hop . | . . . Pick Up 26 | 5 20 1 Fast Attach 9 | 7 2 . Attach 10 | . 4 6 Detach . | . . . Swap 3 | 1 2 . Drop 10 | . 8 2 Fire 101 | 13 71 17 Melee . | . . . Ram . | . . . Kick . | . . . Crush . | . . . Escape Stasis . | . . . Rewire . | . . . Trap . | . . . Miscellaneous . | . . . Route ------- -11/Scrapyard -10/Materials (discovered 4 exits: [*Mat x2] / [*Min x2]) -10/Mines History --------- Turn | Location | Event 10 | -11/Scrapyard | Discovered new exit (range 16) 219 | -11/Scrapyard | Entered Materials 315 | -10/Materials | Build established: Mutant 806 | -10/Materials | Discovered new exit (range 6) 1076 | -10/Materials | Discovered new exit (range 20) 1201 | -10/Materials | Discovered new exit (range 6) 1348 | -10/Materials | Discovered new exit (range 16) 1412 | -10/Materials | Entered Mines 1456 | -10/Mines | Lost 3 parts (1n2w) 1593 | -10/Mines | Core integrity fell below 50% 1597 | -10/Mines | Core integrity fell below 20% 1600 | -10/Mines | Destroyed by YI-UF0 with YI-UF0's Doublenader Last Messages --------------- 01473_ Acquired Wheel. 01474_ Dropped Flight Unit. 01544_ The unstable cave ceiling collapses. 01551_ S-10 Pest destroyed. 01564_ K-01 Serf collects debris. 01574_ YI-UF0 knocked back. 01577_ Wheel destroyed. 01579_ The unstable cave ceiling collapses. 01579_ Lgt. Assault Rifle destroyed. 01582_ YI-UF0 knocked back. 01584_ The unstable cave ceiling collapses. 01584_ YI-UF0 knocked back. 01585_ Wheel destroyed. 01585_ K-01 Serf collects debris. 01589_ The unstable cave ceiling collapses. 01590_ K-01 Serf collects debris. 01592_ The unstable cave ceiling collapses. 01594_ Com. Wheel destroyed. 01597_ The unstable cave ceiling collapses. 01598_ Lgt. Cannon destroyed. Map ----- +----------------------------------------------------+ | ?????????????????????????????????????????????????? | | ?????????????????????????????????????????????????? | | ?????????????????????????????????????????????????? | | ?????????????????????????????????????????????????? | | ?????????????????????????????????????????????????? | | ?????????????????????????????????????????????????? | | ?????????????????????????????????????????????????? | | ?????????????????????????????????????????????????? | | ?????????????????????????????????????????????????? | | ?????????????????????????????????????????????????? | | ???????????????????????????????? ????????????? | | ???????????????????????????????? ???????????? | | ???????????????????????????????? #??????????? | | ???????????????????????????????? #?????????? | | ???????????????????????????????? ##???????? ? | | ???????????????????????????????? ####????? | | ????????????????????????????????? ##??? | | ????????????????????????????????? #### | | ??????????????????##????###?????# ?# | | ????????????# ???## ??## ###### ## | | ????????????# ## ## # # | | ????????????# # #? %% | | ?????????????# #??? | | ??????????????# # ## ## # # | | ??????????????# %# ## #?? | | ?????????????# @ g %% #??? | | ????????????# #### #??? | | ????????????# ### # # ###??# ###? | | ????????????# ??????# #??##????# ## | | ?????????????????????### ##????????# # | | ???????????????????????##### ###???######## | | ???????????????????????????#####?????# | | ????????????????????????????????????## ###### | | ????????????????????????????????????# #????## | | ????????????????????????????????????# #?????#### | | ???????????????????????????????????## ##???????? | | ??????????????????????????????????## #???????? | | ?????????????????????????????????## #???????? | | ????????????????????????????????##%* ##???????? | | ????????????????????????????????# = = ##???????? | | ????????????????????????????????# ##??????? | | ????????????????????????????????## #??????? | | ?????????????????????????????????# * #??????? | | ?????????????????????????????????## ##??????? | | ??????????????????????????????????## ####???????? | | ???????????????????????????????????####??????????? | | ?????????????????????????????????????????????????? | | ?????????????????????????????????????????????????? | | ?????????????????????????????????????????????????? | | ?????????????????????????????????????????????????? | +----------------------------------------------------+ Best States ------------- Heat Dissipation 25 Energy Generation 14 Energy Capacity 280 Matter Stores 300 Matter Capacity 300 Sight Range 16 Terrain Scan Density 10 Evasion (%) 40 Recoil Reduction 2 Item Schematics ----------------- None Robot Schematics ------------------ None Fabricated ------------ Nothing Repaired ---------- Nothing Studied --------- None Alien Tech Used ----------------- None Achievements -------------- None Challenges ------------ None Game ------ Seed ExplosiveBurstMeganuke Manual? 0 Play Time 00:08:40 Cumulative 50.9 hours Start 2026.06.23 @ 18:11:04 End 2026.06.23 @ 18:18:13 Sessions 1 Manual Loads 0 Difficulty Rogue Special Mode None Game No. 107 Rogue 107 Adventurer 0 Explorer 0 Win Type - Total 0 Types 0/0/0/0/0/0/0/0/0/0 Lore% 27 Gallery% 24 Achievement% 22 Wizard Run 0 Options --------- Layout 0 ASCII 0 Keyboard 0 Movement Mouse Keybinds 0 Fullscreen 2 Font 24/Smallcaps Map View 76x50 Zoom Use 0% Tactical HUD 1 Map Filters NONE Filters NONE Steam 1 RUN: 1eccc822-f295-4e4a-8851-cdb68d9093b4